fUSD/lending_fUSD_20260617
["ID","MTS","AMOUNT","RATE_DAILY","PERIOD"]
[425240300,1781632255000,-500.0,0.00029863,2]
[425240273,1781632255000,-592.11,0.00029863,7]
[425240277,1781632255000,-592.11,0.00029863,7]
[425240281,1781632255000,-500.0,0.00029863,2]
[425240274,1781632255000,-592.11,0.00029863,7]
[425240283,1781632255000,-500.0,0.00029863,2]
[425240279,1781632255000,-592.11,0.00029863,7]
[425240278,1781632255000,-592.11,0.00029863,7]
[425240280,1781632255000,-500.0,0.00029863,2]
[425240276,1781632255000,-592.11,0.00029863,7]
[425240282,1781632255000,-500.0,0.00029863,2]
[425240275,1781632255000,-592.11,0.00029863,7]
[425240284,1781632255000,-500.0,0.00029863,2]
[425240285,1781632255000,-500.0,0.00029863,2]
[425240294,1781632255000,-150.0,0.00029863,2]
[425240293,1781632255000,-150.0,0.00029863,2]
[425240328,1781632255000,-500.0,0.00029863,2]
[425240289,1781632255000,-150.0,0.00029863,2]
[425240286,1781632255000,-500.0,0.00029863,2]
[425240287,1781632255000,-500.0,0.00029863,2]
[425240288,1781632255000,-500.0,0.00029863,2]
[425240292,1781632255000,-422.04607068,0.00029863,2]
[425240291,1781632255000,-150.0,0.00029863,2]
[425240295,1781632255000,-150.0,0.00029863,2]
[425240298,1781632255000,-500.0,0.00029863,2]
[425240297,1781632255000,-250.0,0.00029863,2]
[425240302,1781632255000,-500.0,0.00029863,2]
[425240299,1781632255000,-500.0,0.00029863,2]
[425240301,1781632255000,-500.0,0.00029863,2]
[425240329,1781632255000,-500.0,0.00029863,2]
[425240316,1781632255000,-150.0,0.00029863,2]
[425240387,1781632255000,-165.44881996,0.00029865,2]
[425240359,1781632255000,-500.0,0.00029863,2]
[425240363,1781632255000,-500.0,0.00029863,2]
[425240360,1781632255000,-500.0,0.00029863,2]
[425240364,1781632255000,-500.0,0.00029863,2]
[425240370,1781632255000,-500.0,0.00029863,2]
[425240371,1781632255000,-500.0,0.00029863,2]
[425240375,1781632255000,-500.0,0.00029863,2]
[425240373,1781632255000,-150.0,0.00029863,2]
[425240374,1781632255000,-500.0,0.00029863,2]
[425240372,1781632255000,-500.0,0.00029863,2]
[425240376,1781632255000,-500.0,0.00029863,2]
[425240377,1781632255000,-500.0,0.00029863,2]
[425240380,1781632255000,-176.02936921,0.00029864,2]
[425240378,1781632255000,-207.47344829,0.00029863,2]
[425240379,1781632255000,-176.02936921,0.00029864,2]
[425240382,1781632255000,-737.69081912,0.00029865,7]
[425240391,1781632255000,-165.55061113,0.00029865,7]
[425240392,1781632255000,-311.29510258,0.00029865,7]
[425240383,1781632255000,-716.547699,0.00029865,7]
[425240384,1781632255000,-628.81144129,0.00029865,7]
[425240381,1781632255000,-636.3620246,0.00029865,2]
[425240386,1781632255000,-784.68137979,0.00029865,7]
[425240388,1781632255000,-465.89538143,0.00029865,7]
[425240385,1781632255000,-226.20959212,0.00029865,7]
[425240389,1781632255000,-639.30087373,0.00029865,7]
[425240333,1781632255000,-500.0,0.00029863,2]
[425240390,1781632255000,-426.4711613,0.00029865,7]
[425240361,1781632255000,-500.0,0.00029863,2]
[425240362,1781632255000,-500.0,0.00029863,2]
[425240334,1781632255000,-500.0,0.00029863,2]
[425240357,1781632255000,-188.81881566,0.00029863,2]
[425240365,1781632255000,-500.0,0.00029863,2]
[425240344,1781632255000,-276.66846231,0.00029863,2]
[425240337,1781632255000,-150.0,0.00029863,2]
[425240343,1781632255000,-150.0,0.00029863,2]
[425240336,1781632255000,-387.22968512,0.00029863,2]
[425240341,1781632255000,-273.39628625,0.00029863,2]
[425240340,1781632255000,-150.0,0.00029863,2]
[425240342,1781632255000,-200.0,0.00029863,2]
[425240339,1781632255000,-150.0,0.00029863,2]
[425240338,1781632255000,-150.0,0.00029863,2]
[425240347,1781632255000,-500.0,0.00029863,2]
[425240345,1781632255000,-500.0,0.00029863,2]
[425240349,1781632255000,-150.0,0.00029863,2]
[425240335,1781632255000,-500.0,0.00029863,2]
[425240356,1781632255000,-500.0,0.00029863,2]
[425240367,1781632255000,-500.0,0.00029863,2]
[425240369,1781632255000,-150.0,0.00029863,2]
[425240368,1781632255000,-351.89825629,0.00029863,2]
[425240366,1781632255000,-500.0,0.00029863,2]
[425240348,1781632255000,-500.0,0.00029863,2]
[425240355,1781632255000,-219.11595809,0.00029863,2]
[425240358,1781632255000,-500.0,0.00029863,2]
[425240350,1781632255000,-500.0,0.00029863,2]
[425240353,1781632255000,-500.0,0.00029863,2]
[425240354,1781632255000,-150.0,0.00029863,2]
[425240346,1781632255000,-500.0,0.00029863,2]
[425240352,1781632255000,-500.0,0.00029863,2]
[425240351,1781632255000,-150.0,0.00029863,2]
[425240429,1781632256000,-612.0,0.00029866,7]
[425240431,1781632256000,-657.87539957,0.00029878,7]
[425240440,1781632256000,-159.92940095,0.00029878,7]
[425240438,1781632256000,-644.932807,0.00029878,7]
[425240420,1781632256000,-493.73826341,0.00029865,7]
[425240425,1781632256000,-651.83561799,0.00029865,7]
[425240421,1781632256000,-535.66607901,0.00029865,7]
[425240424,1781632256000,-657.98919605,0.00029865,7]
[425240422,1781632256000,-173.98411933,0.00029865,7]
[425240419,1781632256000,-233.82829513,0.00029865,7]
[425240430,1781632256000,-418.7324738,0.00029878,7]
[425240439,1781632256000,-350.06161636,0.00029878,7]
[425240437,1781632256000,-899.19228614,0.00029878,7]
[425240433,1781632256000,-795.85425872,0.00029878,7]
[425240434,1781632256000,-814.76204418,0.00029878,7]
[425240436,1781632256000,-463.57550285,0.00029878,7]
[425240435,1781632256000,-392.09235894,0.00029878,7]
[425240441,1781632256000,-160.29679251,0.00029878,7]
[425240448,1781632256000,-733.17153759,0.00029878,7]
[425240442,1781632256000,-156.95396187,0.00029878,7]
[425240443,1781632256000,-545.07567698,0.00029878,7]
[425240447,1781632256000,-829.90295929,0.00029878,7]
[425240444,1781632256000,-304.10814886,0.00029878,7]
[425240445,1781632256000,-737.46809945,0.00029878,7]
[425240427,1781632256000,-698.43930715,0.00029865,7]
[425240432,1781632256000,-730.37017986,0.00029878,7]
[425240426,1781632256000,-1106.84636652,0.00029865,7]
[425240405,1781632256000,-747.49689194,0.00029865,7]
[425240423,1781632256000,-729.76156324,0.00029865,7]
[425240394,1781632256000,-579.68483325,0.00029865,7]
[425240395,1781632256000,-625.2536086,0.00029865,7]
[425240403,1781632256000,-201.22052711,0.00029865,7]
[425240404,1781632256000,-245.50810422,0.00029865,7]
[425240396,1781632256000,-708.58976904,0.00029865,7]
[425240401,1781632256000,-637.71770852,0.00029865,5]
[425240398,1781632256000,-331.25419272,0.00029865,7]
[425240393,1781632256000,-451.55417274,0.00029865,7]
[425240397,1781632256000,-680.45993126,0.00029865,7]
[425240402,1781632256000,-634.69442546,0.00029865,7]
[425240399,1781632256000,-435.24024606,0.00029865,7]
[425240400,1781632256000,-885.61772535,0.00029865,7]
[425240416,1781632256000,-467.53327757,0.00029865,2]
[425240406,1781632256000,-178.63142046,0.00029865,2]
[425240412,1781632256000,-454.56613264,0.00029865,7]
[425240414,1781632256000,-590.38065297,0.00029865,2]
[425240409,1781632256000,-222.16208298,0.00029865,7]
[425240410,1781632256000,-675.21419024,0.00029865,7]
[425240413,1781632256000,-377.44229714,0.00029865,7]
[425240407,1781632256000,-512.33732044,0.00029865,7]
[425240411,1781632256000,-813.05636193,0.00029865,5]
[425240408,1781632256000,-424.03816668,0.00029865,7]
[425240415,1781632256000,-468.20298063,0.00029865,7]
[425240417,1781632256000,-410.27510891,0.00029865,7]
[425240428,1781632256000,-626.15155776,0.00029865,7]
[425240418,1781632256000,-528.20965889,0.00029865,2]
[425240450,1781632256000,-427.28519817,0.00029878,7]
[425240449,1781632256000,-609.48129939,0.00029878,7]
[425240451,1781632256000,-617.46364999,0.00029878,7]
[425240479,1781632256000,-151.0,0.000299,7]
[425240481,1781632256000,-850.172407,0.000299,7]
[425240485,1781632256000,-1438.698432,0.000299,7]
[425240483,1781632256000,-850.172407,0.000299,7]
[425240486,1781632256000,-1438.698432,0.000299,7]
[425240491,1781632256000,-17269.91714149,0.000299,2]
[425240489,1781632256000,-17269.91714149,0.000299,2]
[425240490,1781632256000,-17269.91714149,0.000299,2]
[425240493,1781632256000,-17269.91714149,0.000299,2]
[425240492,1781632256000,-17269.91714149,0.000299,2]
[425240487,1781632256000,-1438.698432,0.000299,7]
[425240488,1781632256000,-17269.91714151,0.000299,2]
[425240496,1781632256000,-606.64,0.00029999,3]
[425240494,1781632256000,-241.98535978,0.0002999,2]
[425240495,1781632256000,-259.98,0.00029999,3]
[425240498,1781632256000,-5984.0,0.0003,2]
[425240506,1781632256000,-993.94218713,0.0003,60]
[425240497,1781632256000,-866.63,0.00029999,3]
[425240499,1781632256000,-200.0,0.0003,11]
[425240500,1781632256000,-200.0,0.0003,11]
[425240503,1781632256000,-62957.77241443,0.0003,2]
[425240504,1781632256000,-108682.35159744,0.0003,5]
[425240501,1781632256000,-200.0,0.0003,11]
[425240502,1781632256000,-211.9,0.0003,11]
[425240505,1781632256000,-11000.0,0.0003,10]
[425240480,1781632256000,-850.172407,0.000299,7]
[425240484,1781632256000,-1438.698432,0.000299,7]
[425240446,1781632256000,-788.48138177,0.00029878,7]
[425240477,1781632256000,-1233.98,0.000299,7]
[425240482,1781632256000,-850.172407,0.000299,7]
[425240453,1781632256000,-835.4714288,0.00029878,7]
[425240452,1781632256000,-615.83264633,0.00029878,7]
[425240457,1781632256000,-665.41749181,0.00029878,7]
[425240461,1781632256000,-712.81757614,0.00029878,7]
[425240458,1781632256000,-754.93488261,0.00029878,7]
[425240454,1781632256000,-504.49142903,0.00029878,7]
[425240455,1781632256000,-879.65164121,0.00029878,7]
[425240460,1781632256000,-868.14715054,0.00029878,7]
[425240459,1781632256000,-759.81321034,0.00029878,7]
[425240462,1781632256000,-684.82181663,0.00029878,7]
[425240465,1781632256000,-435.95850267,0.00029882,7]
[425240464,1781632256000,-652.66349942,0.00029882,7]
[425240456,1781632256000,-698.96979146,0.00029878,7]
[425240472,1781632256000,-827.1928765,0.00029882,7]
[425240467,1781632256000,-603.20924834,0.00029882,7]
[425240475,1781632256000,-533.1272562,0.00029882,7]
[425240476,1781632256000,-80535.34138284,0.000299,2]
[425240474,1781632256000,-580.7348363,0.00029882,7]
[425240466,1781632256000,-672.6649034,0.00029882,2]
[425240470,1781632256000,-386.46148661,0.00029882,7]
[425240469,1781632256000,-371.60429956,0.00029882,7]
[425240478,1781632256000,-151.0,0.000299,7]
[425240468,1781632256000,-609.01653248,0.00029882,7]
[425240471,1781632256000,-799.81378174,0.00029882,7]
[425240473,1781632256000,-649.18990173,0.00029882,7]
[425240463,1781632256000,-738.7582809,0.00029882,7]
[425240545,1781632257000,-2234.84,0.0003,2]
[425240553,1781632257000,-1692.961456,0.0003,7]
[425240556,1781632257000,-365.581203,0.0003,7]
[425240546,1781632257000,-11872.84,0.0003,2]
[425240542,1781632257000,-204.366753,0.0003,7]
[425240544,1781632257000,-204.366753,0.0003,7]
[425240541,1781632257000,-204.366753,0.0003,7]
[425240540,1781632257000,-151.0,0.0003,7]
[425240543,1781632257000,-204.366753,0.0003,7]
[425240552,1781632257000,-365.581203,0.0003,7]
[425240539,1781632257000,-151.0,0.0003,7]
[425240549,1781632257000,-2500.0,0.0003,2]
[425240565,1781632257000,-151.0,0.0003,7]
[425240547,1781632257000,-25000.0,0.0003,2]
[425240548,1781632257000,-2500.0,0.0003,2]
[425240554,1781632257000,-365.581203,0.0003,7]
[425240550,1781632257000,-365.581203,0.0003,7]
[425240555,1781632257000,-1692.961456,0.0003,7]
[425240558,1781632257000,-151.95472802,0.0003,30]
[425240566,1781632257000,-999.141507,0.0003,7]
[425240568,1781632257000,-999.141507,0.0003,7]
[425240569,1781632257000,-999.141507,0.0003,7]
[425240567,1781632257000,-999.141507,0.0003,7]
[425240557,1781632257000,-1692.961456,0.0003,7]
[425240561,1781632257000,-150.0,0.0003,30]
[425240538,1781632257000,-2191.507944,0.0003,7]
[425240551,1781632257000,-1692.961456,0.0003,7]
[425240537,1781632257000,-151.0,0.0003,7]
[425240520,1781632257000,-45870.80676641,0.0003,7]
[425240535,1781632257000,-2191.507944,0.0003,7]
[425240507,1781632257000,-77054.90073465,0.0003,5]
[425240559,1781632257000,-150.0,0.0003,30]
[425240512,1781632257000,-800.0,0.0003,2]
[425240513,1781632257000,-2000.0,0.0003,14]
[425240509,1781632257000,-275.37822029,0.0003,2]
[425240511,1781632257000,-20292.05703107,0.0003,2]
[425240510,1781632257000,-220.66126549,0.0003,2]
[425240519,1781632257000,-112389.25027989,0.0003,7]
[425240514,1781632257000,-1127.07683525,0.0003,2]
[425240517,1781632257000,-166.37039314,0.0003,2]
[425240515,1781632257000,-1855.75109439,0.0003,2]
[425240518,1781632257000,-112389.25027989,0.0003,7]
[425240516,1781632257000,-1000.0,0.0003,2]
[425240521,1781632257000,-45870.80676641,0.0003,7]
[425240531,1781632257000,-2913.284756,0.0003,7]
[425240532,1781632257000,-2913.284756,0.0003,7]
[425240523,1781632257000,-23615.68604936,0.0003,7]
[425240522,1781632257000,-23615.68604936,0.0003,7]
[425240529,1781632257000,-151.0,0.0003,7]
[425240530,1781632257000,-2913.284756,0.0003,7]
[425240524,1781632257000,-369.71199633,0.0003,30]
[425240525,1781632257000,-650.0,0.0003,2]
[425240527,1781632257000,-150.0,0.0003,2]
[425240528,1781632257000,-1022.96,0.0003,30]
[425240526,1781632257000,-262.16201594,0.0003,7]
[425240533,1781632257000,-2913.284756,0.0003,7]
[425240534,1781632257000,-2191.507944,0.0003,7]
[425240536,1781632257000,-2191.507944,0.0003,7]
[425240508,1781632257000,-10032.57138267,0.0003,5]
[425240560,1781632257000,-200.0,0.0003,2]
[425240563,1781632257000,-151.0,0.0003,7]
[425240600,1781632257000,-346.0,0.0003004,30]
[425240603,1781632257000,-438.0,0.0003004,30]
[425240601,1781632257000,-328.0,0.0003004,30]
[425240602,1781632257000,-792.0,0.0003004,30]
[425240605,1781632257000,-418.0,0.00030041,30]
[425240604,1781632257000,-418.0,0.00030041,30]
[425240606,1781632257000,-304.0,0.00030041,30]
[425240611,1781632257000,-335.0,0.00030051,30]
[425240607,1781632257000,-1853.0,0.00030041,30]
[425240612,1781632257000,-819.0,0.00030051,30]
[425240613,1781632257000,-212.0,0.00030051,30]
[425240614,1781632257000,-1022.96,0.00030057,30]
[425240617,1781632257000,-227.0251855,0.00030073,7]
[425240609,1781632257000,-1022.96,0.00030043,30]
[425240608,1781632257000,-2538.0,0.00030041,30]
[425240610,1781632257000,-1535.0,0.00030051,30]
[425240615,1781632257000,-400.0,0.0003007,2]
[425240616,1781632257000,-1022.96,0.00030071,30]
[425240619,1781632257000,-300.0,0.00030082,30]
[425240620,1781632257000,-200.0,0.00030082,30]
[425240618,1781632257000,-283.3,0.00030082,30]
[425240625,1781632257000,-1944.57,0.000301,7]
[425240624,1781632257000,-1022.96,0.00030086,30]
[425240622,1781632257000,-258.47,0.00030082,30]
[425240623,1781632257000,-223.65,0.00030082,30]
[425240621,1781632257000,-400.02,0.00030082,30]
[425240562,1781632257000,-151.0,0.0003,7]
[425240599,1781632257000,-790.0,0.00030037,2]
[425240598,1781632257000,-506.05,0.00030037,14]
[425240626,1781632257000,-1022.96,0.000301,30]
[425240595,1781632257000,-775.55349719,0.00030012,30]
[425240597,1781632257000,-1022.96,0.00030029,30]
[425240571,1781632257000,-151.0,0.0003,3]
[425240573,1781632257000,-326.137243,0.0003,7]
[425240581,1781632257000,-3189.322519,0.0003,7]
[425240570,1781632257000,-151.0,0.0003,3]
[425240572,1781632257000,-151.0,0.0003,3]
[425240574,1781632257000,-326.137243,0.0003,7]
[425240579,1781632257000,-3189.322519,0.0003,7]
[425240578,1781632257000,-168.132544,0.0003,7]
[425240577,1781632257000,-168.132544,0.0003,7]
[425240576,1781632257000,-326.137243,0.0003,7]
[425240580,1781632257000,-168.132544,0.0003,7]
[425240575,1781632257000,-326.137243,0.0003,7]
[425240564,1781632257000,-151.0,0.0003,7]
[425240592,1781632257000,-450.25017,0.0003,7]
[425240596,1781632257000,-1022.96,0.00030014,30]
[425240589,1781632257000,-2710.123048,0.0003,7]
[425240594,1781632257000,-450.25017,0.0003,7]
[425240590,1781632257000,-450.25017,0.0003,7]
[425240582,1781632257000,-168.132544,0.0003,7]
[425240593,1781632257000,-2710.123048,0.0003,7]
[425240588,1781632257000,-632.3046,0.0003,7]
[425240585,1781632257000,-632.3046,0.0003,7]
[425240584,1781632257000,-3189.322519,0.0003,7]
[425240583,1781632257000,-3189.322519,0.0003,7]
[425240587,1781632257000,-632.3046,0.0003,7]
[425240586,1781632257000,-632.3046,0.0003,7]
[425240591,1781632257000,-2710.123048,0.0003,7]
[425240669,1781632258000,-562.47,0.00030137,2]
[425240677,1781632258000,-268.73284855,0.00030137,14]
[425240676,1781632258000,-268.73284855,0.00030137,14]
[425240666,1781632258000,-500.0,0.00030136,7]
[425240656,1781632258000,-500.0,0.00030136,7]
[425240660,1781632258000,-500.0,0.00030136,7]
[425240661,1781632258000,-500.0,0.00030136,7]
[425240654,1781632258000,-500.0,0.00030136,7]
[425240662,1781632258000,-500.0,0.00030136,7]
[425240655,1781632258000,-500.0,0.00030136,7]
[425240659,1781632258000,-500.0,0.00030136,7]
[425240667,1781632258000,-527.28854591,0.00030136,7]
[425240675,1781632258000,-268.73284855,0.00030137,14]
[425240671,1781632258000,-268.73284856,0.00030137,14]
[425240672,1781632258000,-268.73284855,0.00030137,14]
[425240668,1781632258000,-150.0,0.00030136,2]
[425240670,1781632258000,-664.73,0.00030137,2]
[425240674,1781632258000,-268.73284855,0.00030137,14]
[425240673,1781632258000,-268.73284855,0.00030137,14]
[425240678,1781632258000,-268.73284855,0.00030137,14]
[425240680,1781632258000,-268.73284855,0.00030137,14]
[425240679,1781632258000,-268.73284855,0.00030137,14]
[425240688,1781632258000,-268.73284855,0.00030137,14]
[425240683,1781632258000,-268.73284855,0.00030137,14]
[425240664,1781632258000,-500.0,0.00030136,7]
[425240665,1781632258000,-500.0,0.00030136,7]
[425240658,1781632258000,-500.0,0.00030136,7]
[425240640,1781632258000,-500.0,0.00030136,7]
[425240663,1781632258000,-500.0,0.00030136,7]
[425240681,1781632258000,-268.73284855,0.00030137,14]
[425240628,1781632258000,-1022.96,0.00030114,30]
[425240627,1781632258000,-1716.0,0.000301,7]
[425240629,1781632258000,-1022.96,0.00030129,30]
[425240632,1781632258000,-500.0,0.00030136,7]
[425240633,1781632258000,-500.0,0.00030136,7]
[425240637,1781632258000,-500.0,0.00030136,7]
[425240630,1781632258000,-476.10443138,0.00030135,2]
[425240638,1781632258000,-500.0,0.00030136,7]
[425240635,1781632258000,-500.0,0.00030136,7]
[425240639,1781632258000,-500.0,0.00030136,7]
[425240636,1781632258000,-500.0,0.00030136,7]
[425240657,1781632258000,-500.0,0.00030136,7]
[425240631,1781632258000,-500.0,0.00030136,7]
[425240642,1781632258000,-500.0,0.00030136,7]
[425240652,1781632258000,-500.0,0.00030136,7]
[425240641,1781632258000,-500.0,0.00030136,7]
[425240643,1781632258000,-500.0,0.00030136,7]
[425240647,1781632258000,-500.0,0.00030136,7]
[425240646,1781632258000,-500.0,0.00030136,7]
[425240645,1781632258000,-500.0,0.00030136,7]
[425240648,1781632258000,-500.0,0.00030136,7]
[425240649,1781632258000,-500.0,0.00030136,7]
[425240650,1781632258000,-500.0,0.00030136,7]
[425240651,1781632258000,-500.0,0.00030136,7]
[425240653,1781632258000,-500.0,0.00030136,7]
[425240634,1781632258000,-500.0,0.00030136,7]
[425240685,1781632258000,-268.73284855,0.00030137,14]
[425240644,1781632258000,-500.0,0.00030136,7]
[425240682,1781632258000,-268.73284855,0.00030137,14]
[425240722,1781632258000,-1022.96,0.000302,30]
[425240718,1781632258000,-1022.96,0.00030171,30]
[425240721,1781632258000,-225.84570254,0.000302,120]
[425240719,1781632258000,-1022.96,0.00030186,30]
[425240741,1781632258000,-786.01430161,0.00030436,7]
[425240717,1781632258000,-2000.0,0.00030159,7]
[425240720,1781632258000,-908.10074191,0.00030199,7]
[425240724,1781632258000,-171.68,0.00030219,14]
[425240725,1781632258000,-1396.83280242,0.00030235,30]
[425240726,1781632258000,-644.79446245,0.0003025,2]
[425240727,1781632258000,-151.0,0.0003025,2]
[425240728,1781632258000,-747.80937859,0.0003025,2]
[425240716,1781632258000,-1022.96,0.00030157,30]
[425240729,1781632258000,-14630.08,0.0003025,2]
[425240731,1781632258000,-2500.0,0.0003025,2]
[425240730,1781632258000,-2499.98,0.0003025,2]
[425240733,1781632258000,-152.0,0.00030278,11]
[425240735,1781632258000,-730.0,0.00030341,5]
[425240739,1781632258000,-1245.65,0.0003042,7]
[425240738,1781632258000,-365.13,0.00030411,120]
[425240734,1781632258000,-1233.98,0.000303,7]
[425240736,1781632258000,-759.15594015,0.00030384,7]
[425240742,1781632258000,-980.85172473,0.00030436,7]
[425240740,1781632258000,-795.45253075,0.00030436,2]
[425240737,1781632258000,-500.0,0.00030409,20]
[425240686,1781632258000,-268.73284855,0.00030137,14]
[425240732,1781632258000,-301.14337869,0.00030253,2]
[425240715,1781632258000,-1022.96,0.00030143,30]
[425240723,1781632258000,-175.0,0.00030205,14]
[425240712,1781632258000,-930.00000001,0.00030137,120]
[425240714,1781632258000,-3121.78,0.00030137,7]
[425240689,1781632258000,-268.73284855,0.00030137,14]
[425240687,1781632258000,-268.73284855,0.00030137,14]
[425240691,1781632258000,-1644.23,0.00030137,30]
[425240693,1781632258000,-415.83675007,0.00030137,7]
[425240692,1781632258000,-207.91837504,0.00030137,7]
[425240690,1781632258000,-268.73284855,0.00030137,14]
[425240699,1781632258000,-500.0,0.00030137,3]
[425240700,1781632258000,-299.9,0.00030137,2]
[425240695,1781632258000,-500.0,0.00030137,3]
[425240694,1781632258000,-500.0,0.00030137,3]
[425240696,1781632258000,-500.0,0.00030137,3]
[425240698,1781632258000,-1970.0,0.00030137,120]
[425240684,1781632258000,-268.73284855,0.00030137,14]
[425240701,1781632258000,-178.3012988,0.00030137,30]
[425240697,1781632258000,-500.0,0.00030137,3]
[425240708,1781632258000,-930.00138262,0.00030137,120]
[425240710,1781632258000,-930.00000346,0.00030137,120]
[425240709,1781632258000,-930.00006913,0.00030137,120]
[425240702,1781632258000,-162.96,0.00030137,7]
[425240711,1781632258000,-930.00000017,0.00030137,120]
[425240713,1781632258000,-930.0,0.00030137,120]
[425240705,1781632258000,-941.0609793,0.00030137,120]
[425240707,1781632258000,-930.02765245,0.00030137,120]
[425240703,1781632258000,-150.0,0.00030137,7]
[425240704,1781632258000,-1151.21958599,0.00030137,120]
[425240706,1781632258000,-930.55304896,0.00030137,120]
[425240786,1781632259000,-200.0,0.00030859,2]
[425240783,1781632259000,-577.0,0.00030845,10]
[425240781,1781632259000,-1944.57,0.000308,7]
[425240775,1781632259000,-2886.11,0.000306,7]
[425240777,1781632259000,-913.94,0.00030704,2]
[425240778,1781632259000,-1396.83280242,0.00030724,30]
[425240779,1781632259000,-2500.0,0.0003075,2]
[425240774,1781632259000,-339.0,0.00030581,2]
[425240780,1781632259000,-250.0,0.000308,30]
[425240776,1781632259000,-160.0,0.00030625,3]
[425240785,1781632259000,-200.0,0.00030859,2]
[425240782,1781632259000,-261.0789633,0.00030822,7]
[425240787,1781632259000,-200.0,0.00030859,2]
[425240790,1781632259000,-200.0,0.00030859,2]
[425240784,1781632259000,-1240.0,0.00030859,2]
[425240789,1781632259000,-200.0,0.00030859,2]
[425240792,1781632259000,-2000.0,0.00030859,2]
[425240791,1781632259000,-159.0,0.00030859,2]
[425240793,1781632259000,-565.0,0.00030859,2]
[425240794,1781632259000,-300.0,0.00030859,2]
[425240795,1781632259000,-300.0,0.00030859,2]
[425240796,1781632259000,-300.0,0.00030859,2]
[425240797,1781632259000,-300.0,0.00030859,2]
[425240801,1781632259000,-247.0,0.00030859,2]
[425240802,1781632259000,-730.0,0.00030875,6]
[425240773,1781632259000,-213.0,0.00030581,2]
[425240788,1781632259000,-200.0,0.00030859,2]
[425240772,1781632259000,-1233.98,0.000305,7]
[425240745,1781632259000,-1107.02215669,0.00030436,7]
[425240759,1781632259000,-887.34679205,0.00030449,7]
[425240800,1781632259000,-300.0,0.00030859,2]
[425240746,1781632259000,-793.36803183,0.00030436,7]
[425240744,1781632259000,-781.56701075,0.00030436,7]
[425240743,1781632259000,-799.12609217,0.00030436,7]
[425240747,1781632259000,-822.48649506,0.00030436,7]
[425240749,1781632259000,-873.04913394,0.00030436,7]
[425240756,1781632259000,-806.16600875,0.00030449,7]
[425240757,1781632259000,-921.83512431,0.00030449,7]
[425240750,1781632259000,-782.6894472,0.00030436,7]
[425240748,1781632259000,-1383.55795815,0.00030436,7]
[425240758,1781632259000,-761.85162424,0.00030449,7]
[425240755,1781632259000,-985.98534525,0.00030449,7]
[425240752,1781632259000,-234.57,0.00030441,8]
[425240754,1781632259000,-822.34424947,0.00030449,7]
[425240751,1781632259000,-480.42,0.00030441,8]
[425240753,1781632259000,-206.29,0.00030441,8]
[425240769,1781632259000,-250.0,0.00030481,7]
[425240761,1781632259000,-769.79080792,0.00030449,7]
[425240760,1781632259000,-771.82956249,0.00030449,7]
[425240763,1781632259000,-858.20118248,0.00030449,7]
[425240768,1781632259000,-250.0,0.00030481,7]
[425240764,1781632259000,-754.01156042,0.00030453,7]
[425240767,1781632259000,-2542.16820703,0.00030479,30]
[425240765,1781632259000,-761.2706656,0.00030453,7]
[425240766,1781632259000,-811.48737716,0.00030453,7]
[425240770,1781632259000,-250.0,0.00030481,7]
[425240762,1781632259000,-810.55822367,0.00030449,7]
[425240771,1781632259000,-2500.0,0.000305,2]
[425240798,1781632259000,-300.0,0.00030859,2]